[Event "*** Titled Tuesday Blitz"]
[Site "Chess.com"]
[Date "2018.06.05"]
[Round "9"]
[White "kungmongmanh"]
[Black "nabukatnezarr"]
[Result "1-0"]
[WhiteElo "2348"]
[BlackElo "2292"]
[TimeControl "180+2"]
[EndTime "15:09:41 PDT"]
[Termination "kungmongmanh won by resignation"]

1. d4 {[%clk 0:03:01.9]} 1... d5 {[%clk 0:02:56.4]} 2. c4 {[%clk 0:03:01.6]}
2... c6 {[%clk 0:02:57.9]} 3. Nc3 {[%clk 0:03:02.9]} 3... Nf6 {[%clk 0:02:57.9]}
4. Nf3 {[%clk 0:03:03.6]} 4... dxc4 {[%clk 0:02:58.6]} 5. a4 {[%clk 0:03:04]}
5... Bf5 {[%clk 0:02:58.9]} 6. e3 {[%clk 0:03:02.1]} 6... e6 {[%clk 0:02:58.9]}
7. Bxc4 {[%clk 0:03:03.2]} 7... Bb4 {[%clk 0:02:57.8]} 8. Qb3 {[%clk 0:03:04.3]}
8... a5 {[%clk 0:02:55.9]} 9. O-O {[%clk 0:03:05.1]} 9... O-O {[%clk 0:02:55.1]}
10. Na2 {[%clk 0:03:03.4]} 10... Na6 {[%clk 0:02:50.8]} 11. Bd2 {[%clk
0:02:40.3]} 11... Bxd2 {[%clk 0:02:37.4]} 12. Nxd2 {[%clk 0:02:42.2]} 12... Qe7
{[%clk 0:02:36.7]} 13. Bxa6 {[%clk 0:02:29.5]} 13... Rxa6 {[%clk 0:02:29.9]} 14.
Rac1 {[%clk 0:02:24.5]} 14... h6 {[%clk 0:02:18.8]} 15. Rfe1 {[%clk 0:02:24.7]}
15... Ne4 {[%clk 0:02:16.1]} 16. Nc4 {[%clk 0:02:22.1]} 16... Nd6 {[%clk
0:02:06.9]} 17. Qa3 {[%clk 0:02:10.7]} 17... Rd8 {[%clk 0:02:01.1]} 18. Nxd6
{[%clk 0:02:03.1]} 18... Qxd6 {[%clk 0:02:03]} 19. Qxd6 {[%clk 0:02:04.1]} 19...
Rxd6 {[%clk 0:02:03.5]} 20. Rc5 {[%clk 0:02:05.2]} 20... Kf8 {[%clk 0:01:49.2]}
21. f3 {[%clk 0:02:02.5]} 21... Ke7 {[%clk 0:01:48.6]} 22. Kf2 {[%clk
0:02:00.1]} 22... Rb6 {[%clk 0:01:48.2]} 23. Re2 {[%clk 0:01:58.9]} 23... Ra6
{[%clk 0:01:30.9]} 24. e4 {[%clk 0:01:57.3]} 24... Bg6 {[%clk 0:01:29.9]} 25.
Ke3 {[%clk 0:01:58.7]} 25... Ra8 {[%clk 0:01:23.8]} 26. Nc1 {[%clk 0:01:48.2]}
26... Rad8 {[%clk 0:01:13.9]} 27. Nb3 {[%clk 0:01:48.9]} 27... b6 {[%clk
0:01:13.2]} 28. Rc3 {[%clk 0:01:50.1]} 28... f6 {[%clk 0:01:11.2]} 29. Rec2
{[%clk 0:01:50.8]} 29... Be8 {[%clk 0:01:12.6]} 30. h4 {[%clk 0:01:41.4]} 30...
e5 {[%clk 0:01:09.5]} 31. dxe5 {[%clk 0:01:32.3]} 31... fxe5 {[%clk 0:01:11.4]}
32. Nd2 {[%clk 0:01:33]} 32... c5 {[%clk 0:00:56.5]} 33. b3 {[%clk 0:01:28.6]}
33... Rg6 {[%clk 0:00:48.3]} 34. Nc4 {[%clk 0:01:28.2]} 34... Re6 {[%clk
0:00:42.1]} 35. g4 {[%clk 0:01:28.6]} 35... Rd4 {[%clk 0:00:33.8]} 36. g5 {[%clk
0:01:19.8]} 36... hxg5 {[%clk 0:00:25]} 37. hxg5 {[%clk 0:01:21.7]} 37... Kf7
{[%clk 0:00:24.1]} 38. Rg2 {[%clk 0:01:18.7]} 38... Kg6 {[%clk 0:00:24.6]} 39.
Rcc2 {[%clk 0:01:18.8]} 39... b5 {[%clk 0:00:16.2]} 40. axb5 {[%clk 0:01:16.3]}
40... Bxb5 {[%clk 0:00:18.1]} 41. Nb2 {[%clk 0:01:14.1]} 41... Rc6 {[%clk
0:00:17.2]} 42. Rc3 {[%clk 0:01:07.6]} 42... Ba6 {[%clk 0:00:15.4]} 43. Rgc2
{[%clk 0:01:08.2]} 43... Rc8 {[%clk 0:00:14.3]} 44. Rxc5 {[%clk 0:01:09.1]}
44... Rxc5 {[%clk 0:00:12.7]} 45. Rxc5 {[%clk 0:01:11]} 45... Kxg5 {[%clk
0:00:13.6]} 46. Rxe5+ {[%clk 0:01:11.4]} 46... Kf6 {[%clk 0:00:13.9]} 47. Kxd4
{[%clk 0:01:12.8]} 1-0

[Event "*** Titled Tuesday Blitz"]
[Site "Chess.com"]
[Date "2018.06.05"]
[Round "9"]
[White "Ar4uha"]
[Black "Swarnapuri"]
[Result "0-1"]
[WhiteElo "2577"]
[BlackElo "2495"]
[TimeControl "180+2"]
[EndTime "15:09:43 PDT"]
[Termination "Swarnapuri won by resignation"]

1. e4 {[%clk 0:02:52.6]} 1... Nc6 {[%clk 0:03:01.2]} 2. Nf3 {[%clk 0:02:51.2]}
2... d6 {[%clk 0:03:02.2]} 3. d4 {[%clk 0:02:50.5]} 3... Nf6 {[%clk 0:03:04.1]}
4. Nc3 {[%clk 0:02:50.9]} 4... Bg4 {[%clk 0:03:04.8]} 5. Be3 {[%clk 0:02:51.2]}
5... e5 {[%clk 0:03:05.4]} 6. d5 {[%clk 0:02:52.1]} 6... Ne7 {[%clk 0:03:06.3]}
7. h3 {[%clk 0:02:53.5]} 7... Bd7 {[%clk 0:03:06.8]} 8. g4 {[%clk 0:02:54.4]}
8... h6 {[%clk 0:03:07.4]} 9. Bd3 {[%clk 0:02:54.1]} 9... Ng6 {[%clk 0:03:08.2]}
10. Ne2 {[%clk 0:02:54.8]} 10... c6 {[%clk 0:03:03.6]} 11. c4 {[%clk 0:02:54.7]}
11... b5 {[%clk 0:03:01.6]} 12. dxc6 {[%clk 0:02:53.9]} 12... Bxc6 {[%clk
0:03:00]} 13. cxb5 {[%clk 0:02:55.2]} 13... Bxe4 {[%clk 0:02:57.8]} 14. Bxe4
{[%clk 0:02:56.1]} 14... Nxe4 {[%clk 0:02:59.7]} 15. Qd5 {[%clk 0:02:57.5]}
15... Nf6 {[%clk 0:02:56.6]} 16. Qc6+ {[%clk 0:02:58.1]} 16... Nd7 {[%clk
0:02:57]} 17. Nc3 {[%clk 0:02:55.4]} 17... Ne7 {[%clk 0:02:45.6]} 18. Qe4 {[%clk
0:02:54]} 18... Nf6 {[%clk 0:02:35.3]} 19. Qa4 {[%clk 0:02:53.7]} 19... Qd7
{[%clk 0:02:21.7]} 20. O-O-O {[%clk 0:02:54.4]} 20... Ng6 {[%clk 0:02:16.6]} 21.
g5 {[%clk 0:02:52.9]} 21... hxg5 {[%clk 0:02:15.1]} 22. Bxg5 {[%clk 0:02:54.8]}
22... Be7 {[%clk 0:02:13.5]} 23. h4 {[%clk 0:02:55.8]} 23... Qg4 {[%clk
0:01:54.8]} 24. b6+ {[%clk 0:02:51.9]} 24... Qxa4 {[%clk 0:01:52.4]} 25. Nxa4
{[%clk 0:02:52.6]} 25... axb6 {[%clk 0:01:53.9]} 26. Nxb6 {[%clk 0:02:52.7]}
26... Rxa2 {[%clk 0:01:53.8]} 27. Nd2 {[%clk 0:02:42.3]} 27... Ra1+ {[%clk
0:01:48.3]} 28. Kc2 {[%clk 0:02:43.2]} 28... Rxd1 {[%clk 0:01:48.1]} 29. Kxd1
{[%clk 0:02:44]} 29... Ng4 {[%clk 0:01:47]} 30. Rf1 {[%clk 0:02:35.9]} 30...
Nxh4 {[%clk 0:01:35.7]} 31. Bxe7 {[%clk 0:02:32.5]} 31... Kxe7 {[%clk
0:01:37.4]} 32. Ke2 {[%clk 0:02:18.8]} 32... Ng6 {[%clk 0:01:38.1]} 33. b4
{[%clk 0:02:17]} 33... Nf4+ {[%clk 0:01:29.8]} 34. Kf3 {[%clk 0:02:17.4]} 34...
f5 {[%clk 0:01:30.8]} 35. Rg1 {[%clk 0:02:14.4]} 35... g5 {[%clk 0:01:26.9]} 36.
Rxg4 {[%clk 0:02:08]} 36... fxg4+ {[%clk 0:01:25.7]} 37. Kxg4 {[%clk 0:02:09.9]}
37... Rb8 {[%clk 0:01:24.6]} 38. Nbc4 {[%clk 0:02:04]} 38... Ne6 {[%clk
0:01:16.7]} 39. Ne3 {[%clk 0:02:02.9]} 39... Rxb4+ {[%clk 0:01:15.8]} 40. Kf5
{[%clk 0:02:03.8]} 40... Rf4+ {[%clk 0:01:16.5]} 41. Kg6 {[%clk 0:02:05.1]}
41... Rf6+ {[%clk 0:01:16.2]} 42. Kh5 {[%clk 0:02:05.9]} 42... Rxf2 {[%clk
0:01:16.5]} 43. Ne4 {[%clk 0:02:06.7]} 43... Re2 {[%clk 0:01:15.4]} 44. Nd5+
{[%clk 0:02:07.1]} 44... Kd7 {[%clk 0:01:16.1]} 45. Ndf6+ {[%clk 0:02:07.3]}
45... Kc6 {[%clk 0:01:15.7]} 46. Kg6 {[%clk 0:02:09.2]} 46... d5 {[%clk
0:01:13.1]} 47. Ng3 {[%clk 0:02:10]} 47... Rf2 {[%clk 0:01:10.6]} 48. Ng4 {[%clk
0:02:10]} 48... Rg2 {[%clk 0:01:02.4]} 49. Nxe5+ {[%clk 0:02:10.8]} 49... Kc5
{[%clk 0:01:02.5]} 50. Nf5 {[%clk 0:02:09.8]} 50... d4 {[%clk 0:01:00.5]} 51.
Kf6 {[%clk 0:01:49.9]} 51... Nf4 {[%clk 0:01:01.3]} 52. Ne7 {[%clk 0:01:51.8]}
52... Nd5+ {[%clk 0:01:01.1]} 53. Nxd5 {[%clk 0:01:43.9]} 53... Kxd5 {[%clk
0:01:02.7]} 54. Nd3 {[%clk 0:01:44.7]} 54... Rg3 {[%clk 0:01:00.5]} 55. Ne1
{[%clk 0:01:44.6]} 55... Ke4 {[%clk 0:01:01.2]} 0-1

[Event "*** Titled Tuesday Blitz"]
[Site "Chess.com"]
[Date "2018.06.05"]
[Round "9"]
[White "FMJoseHerrera"]
[Black "EmreDedebas"]
[Result "0-1"]
[WhiteElo "2448"]
[BlackElo "2389"]
[TimeControl "180+2"]
[EndTime "15:09:59 PDT"]
[Termination "EmreDedebas won by resignation"]

1. Nf3 {[%clk 0:02:58.3]} 1... d6 {[%clk 0:03:01.7]} 2. g3 {[%clk 0:03:00.2]}
2... Nf6 {[%clk 0:03:02]} 3. Bg2 {[%clk 0:03:01.6]} 3... e5 {[%clk 0:03:02.2]}
4. O-O {[%clk 0:03:03]} 4... Be7 {[%clk 0:03:03.8]} 5. d3 {[%clk 0:03:04.2]}
5... O-O {[%clk 0:03:05.5]} 6. Nc3 {[%clk 0:03:05.3]} 6... Re8 {[%clk
0:03:03.2]} 7. e4 {[%clk 0:03:06.5]} 7... Bf8 {[%clk 0:03:03.5]} 8. Bg5 {[%clk
0:03:05.7]} 8... c6 {[%clk 0:03:04.5]} 9. Re1 {[%clk 0:03:05]} 9... h6 {[%clk
0:03:04.9]} 10. Bd2 {[%clk 0:03:04.6]} 10... Nbd7 {[%clk 0:03:05.1]} 11. Ne2
{[%clk 0:03:03.3]} 11... a5 {[%clk 0:03:06]} 12. c3 {[%clk 0:03:04.1]} 12... Nc5
{[%clk 0:03:07.1]} 13. Qc2 {[%clk 0:03:04.9]} 13... a4 {[%clk 0:03:06.8]} 14. b4
{[%clk 0:03:04.2]} 14... axb3 {[%clk 0:02:42]} 15. axb3 {[%clk 0:03:06.1]} 15...
Be6 {[%clk 0:02:43.4]} 16. b4 {[%clk 0:03:03.3]} 16... Ncd7 {[%clk 0:02:36.1]}
17. Qb2 {[%clk 0:02:53.6]} 17... Qc7 {[%clk 0:02:30.9]} 18. h3 {[%clk
0:02:22.4]} 18... b5 {[%clk 0:02:31.3]} 19. g4 {[%clk 0:02:22.5]} 19... Nb6
{[%clk 0:02:31.8]} 20. Ng3 {[%clk 0:02:20.7]} 20... Na4 {[%clk 0:02:24.1]} 21.
Qc1 {[%clk 0:02:21.4]} 21... c5 {[%clk 0:02:24.6]} 22. bxc5 {[%clk 0:02:20.1]}
22... Nxc5 {[%clk 0:02:23.7]} 23. Bf1 {[%clk 0:02:18.9]} 23... Nb3 {[%clk
0:02:22]} 24. Rxa8 {[%clk 0:02:16.2]} 24... Nxc1 {[%clk 0:02:22.6]} 25. Rxe8
{[%clk 0:02:17.5]} 25... Nxe8 {[%clk 0:02:24.1]} 26. Rxc1 {[%clk 0:02:19]} 26...
d5 {[%clk 0:02:22.7]} 27. Nh4 {[%clk 0:01:53.4]} 27... Nd6 {[%clk 0:02:09.4]}
28. Nhf5 {[%clk 0:01:46.1]} 28... dxe4 {[%clk 0:01:58.3]} 29. Nxd6 {[%clk
0:01:38.5]} 29... Bxd6 {[%clk 0:01:45.7]} 30. Nxe4 {[%clk 0:01:38.9]} 30... Be7
{[%clk 0:01:44.3]} 31. Rb1 {[%clk 0:01:19]} 31... Qc6 {[%clk 0:01:34.5]} 32. Bg2
{[%clk 0:01:10.5]} 32... Bd5 {[%clk 0:01:28]} 33. Be3 {[%clk 0:00:32.1]} 33...
g6 {[%clk 0:01:14.9]} 34. Bxh6 {[%clk 0:00:29]} 34... f5 {[%clk 0:01:14.2]} 35.
gxf5 {[%clk 0:00:24.5]} 35... gxf5 {[%clk 0:01:13.8]} 36. c4 {[%clk 0:00:25.7]}
36... bxc4 {[%clk 0:01:13.6]} 37. Rb8+ {[%clk 0:00:23.8]} 37... Kh7 {[%clk
0:01:13.9]} 38. Bg5 {[%clk 0:00:24.5]} 38... Bxe4 {[%clk 0:01:07.5]} 39. dxe4
{[%clk 0:00:21.8]} 39... Bxg5 {[%clk 0:01:04.4]} 40. exf5 {[%clk 0:00:23.2]}
40... Qd6 {[%clk 0:01:03.1]} 41. Be4 {[%clk 0:00:23.9]} 41... Bf6 {[%clk
0:01:02.2]} 42. Rb7+ {[%clk 0:00:24.9]} 42... Kh6 {[%clk 0:01:02.6]} 43. Kg2
{[%clk 0:00:26.8]} 43... c3 {[%clk 0:01:02.5]} 44. Rf7 {[%clk 0:00:27.4]} 44...
Kg5 {[%clk 0:00:59.6]} 45. Rb7 {[%clk 0:00:27.3]} 45... Kf4 {[%clk 0:00:59.6]}
46. Bc2 {[%clk 0:00:27.7]} 46... Qd5+ {[%clk 0:00:56.6]} 0-1

[Event "*** Titled Tuesday Blitz"]
[Site "Chess.com"]
[Date "2018.06.05"]
[Round "9"]
[White "FairChess_on_YouTube"]
[Black "Fandorine"]
[Result "1-0"]
[WhiteElo "2950"]
[BlackElo "2736"]
[TimeControl "180+2"]
[EndTime "15:10:03 PDT"]
[Termination "FairChess_on_YouTube won by checkmate"]

1. e4 {[%clk 0:03:01.9]} 1... c5 {[%clk 0:02:54.1]} 2. Nf3 {[%clk 0:03:02.4]}
2... e6 {[%clk 0:02:55.5]} 3. d4 {[%clk 0:03:03]} 3... cxd4 {[%clk 0:02:57.4]}
4. Nxd4 {[%clk 0:03:04.2]} 4... Nc6 {[%clk 0:02:59]} 5. Nc3 {[%clk 0:03:05.1]}
5... Qc7 {[%clk 0:03:00.6]} 6. Be2 {[%clk 0:03:04.9]} 6... a6 {[%clk 0:03:01.5]}
7. O-O {[%clk 0:03:05.7]} 7... Nf6 {[%clk 0:03:02.3]} 8. Be3 {[%clk 0:03:06.1]}
8... Be7 {[%clk 0:03:03.7]} 9. Kh1 {[%clk 0:03:05.5]} 9... O-O {[%clk
0:03:03.9]} 10. f4 {[%clk 0:03:06.4]} 10... d6 {[%clk 0:03:05.1]} 11. a4 {[%clk
0:03:06.8]} 11... Re8 {[%clk 0:03:05.5]} 12. Nb3 {[%clk 0:03:06.5]} 12... b6
{[%clk 0:02:57.8]} 13. g4 {[%clk 0:03:04]} 13... Rb8 {[%clk 0:02:58]} 14. g5
{[%clk 0:03:04.6]} 14... Nd7 {[%clk 0:02:59.3]} 15. Bf3 {[%clk 0:03:04.5]} 15...
Na5 {[%clk 0:03:00]} 16. Nd2 {[%clk 0:03:03.7]} 16... Bb7 {[%clk 0:02:36.6]} 17.
Bg2 {[%clk 0:03:03.1]} 17... Ba8 {[%clk 0:02:24.9]} 18. f5 {[%clk 0:02:57.8]}
18... Ne5 {[%clk 0:02:11.9]} 19. f6 {[%clk 0:02:49.7]} 19... Bf8 {[%clk
0:02:12.4]} 20. fxg7 {[%clk 0:02:42.5]} 20... Bxg7 {[%clk 0:02:13.4]} 21. Qh5
{[%clk 0:02:43.7]} 21... Nac4 {[%clk 0:01:44.7]} 22. Bf4 {[%clk 0:02:44.6]}
22... b5 {[%clk 0:01:40.5]} 23. axb5 {[%clk 0:02:44.3]} 23... axb5 {[%clk
0:01:42.4]} 24. Nxc4 {[%clk 0:02:29.5]} 24... bxc4 {[%clk 0:01:43.1]} 25. Ra3
{[%clk 0:02:07.9]} 25... Ng6 {[%clk 0:01:32.1]} 26. Bc1 {[%clk 0:02:05.9]} 26...
Qd7 {[%clk 0:01:12.5]} 27. Nd1 {[%clk 0:02:01.5]} 27... d5 {[%clk 0:01:07.2]}
28. Rh3 {[%clk 0:01:59.9]} 28... Nf8 {[%clk 0:01:07.7]} 29. Ne3 {[%clk
0:01:06.1]} 29... dxe4 {[%clk 0:01:08.5]} 30. Ng4 {[%clk 0:01:07.1]} 30... e3
{[%clk 0:01:09.7]} 31. Rg3 {[%clk 0:00:50.1]} 31... e2 {[%clk 0:00:22.1]} 32.
Nh6+ {[%clk 0:00:42.7]} 32... Kh8 {[%clk 0:00:21.3]} 33. Qxe2 {[%clk 0:00:41.9]}
33... Bxh6 {[%clk 0:00:18.3]} 34. gxh6 {[%clk 0:00:40.5]} 34... Ng6 {[%clk
0:00:15.8]} 35. Bxa8 {[%clk 0:00:17.7]} 35... Rxa8 {[%clk 0:00:15.5]} 36. Qxc4
{[%clk 0:00:18.9]} 36... Rac8 {[%clk 0:00:12.1]} 37. Qe4 {[%clk 0:00:17.2]}
37... f5 {[%clk 0:00:12.9]} 38. Qe2 {[%clk 0:00:17.2]} 38... Qc6+ {[%clk
0:00:10.8]} 39. Rg2 {[%clk 0:00:17.7]} 39... Nh4 {[%clk 0:00:11.8]} 40. Qe5#
{[%clk 0:00:17.7]} 1-0

[Event "*** Titled Tuesday Blitz"]
[Site "Chess.com"]
[Date "2018.06.05"]
[Round "9"]
[White "Martins-BR"]
[Black "RiskyDecision"]
[Result "0-1"]
[WhiteElo "2309"]
[BlackElo "2529"]
[TimeControl "180+2"]
[EndTime "15:10:04 PDT"]
[Termination "RiskyDecision won by resignation"]

1. e4 {[%clk 0:03:01.9]} 1... e6 {[%clk 0:03:00.6]} 2. d4 {[%clk 0:03:01.5]}
2... d5 {[%clk 0:03:01.6]} 3. Nc3 {[%clk 0:03:02.4]} 3... dxe4 {[%clk
0:03:01.4]} 4. Nxe4 {[%clk 0:03:02.6]} 4... Nd7 {[%clk 0:03:03]} 5. Bd3 {[%clk
0:03:01.5]} 5... Ngf6 {[%clk 0:03:03.6]} 6. Qe2 {[%clk 0:03:01.7]} 6... c5
{[%clk 0:03:03.6]} 7. Nxc5 {[%clk 0:02:57.5]} 7... Nxc5 {[%clk 0:03:03.1]} 8.
dxc5 {[%clk 0:02:58.5]} 8... Bxc5 {[%clk 0:03:04.5]} 9. Nf3 {[%clk 0:02:55.8]}
9... O-O {[%clk 0:03:03.8]} 10. Bg5 {[%clk 0:02:52]} 10... h6 {[%clk 0:02:58.7]}
11. Bh4 {[%clk 0:02:50.5]} 11... Qa5+ {[%clk 0:02:58.7]} 12. c3 {[%clk
0:02:48.1]} 12... Nd5 {[%clk 0:02:57.5]} 13. b4 {[%clk 0:01:56.2]} 13... Qa3
{[%clk 0:02:50.7]} 14. O-O {[%clk 0:01:50.8]} 14... Nxc3 {[%clk 0:02:50.2]} 15.
Qc2 {[%clk 0:01:44.2]} 15... Bxb4 {[%clk 0:02:47.4]} 16. Rfe1 {[%clk 0:01:30.7]}
16... Nd5 {[%clk 0:02:35.4]} 17. Re4 {[%clk 0:01:22.1]} 17... Bd7 {[%clk
0:02:20.6]} 18. Ne5 {[%clk 0:01:13]} 18... Ba4 {[%clk 0:02:01.4]} 19. Qe2 {[%clk
0:01:05.1]} 19... Nc3 {[%clk 0:01:49.5]} 20. Qf3 {[%clk 0:01:05.6]} 20... Nxe4
{[%clk 0:01:46.8]} 21. Qxe4 {[%clk 0:01:06]} 21... f5 {[%clk 0:01:46]} 22. Qc4
{[%clk 0:01:01.4]} 22... Rae8 {[%clk 0:01:36.7]} 23. Bg3 {[%clk 0:00:47]} 23...
Qc3 {[%clk 0:01:31.1]} 24. Rc1 {[%clk 0:00:36.5]} 24... Qxc4 {[%clk 0:01:14]}
25. Rxc4 {[%clk 0:00:37]} 25... a5 {[%clk 0:01:14.5]} 26. Ng6 {[%clk 0:00:31.8]}
26... Rf6 {[%clk 0:01:07.1]} 27. Nf4 {[%clk 0:00:29.7]} 27... Bb5 {[%clk
0:01:03.4]} 28. Rxb4 {[%clk 0:00:26]} 28... Bxd3 {[%clk 0:01:01]} 29. Rxb7
{[%clk 0:00:25.9]} 29... Bc4 {[%clk 0:00:53.7]} 30. Ra7 {[%clk 0:00:21.8]} 30...
Bxa2 {[%clk 0:00:48.1]} 31. Rxa5 {[%clk 0:00:21.2]} 31... Bc4 {[%clk 0:00:45.1]}
32. h4 {[%clk 0:00:17.2]} 32... e5 {[%clk 0:00:27]} 33. Nh5 {[%clk 0:00:17.4]}
33... Rfe6 {[%clk 0:00:27.4]} 34. f3 {[%clk 0:00:17.3]} 34... f4 {[%clk
0:00:26.5]} 35. Bf2 {[%clk 0:00:17.5]} 35... g6 {[%clk 0:00:26]} 36. Rc5 {[%clk
0:00:16.6]} 36... Bd3 {[%clk 0:00:22.9]} 37. Rc3 {[%clk 0:00:16.6]} 37... Bf5
{[%clk 0:00:21.2]} 38. g4 {[%clk 0:00:16.3]} 38... Bb1 {[%clk 0:00:22.2]} 39.
Rc1 {[%clk 0:00:15.6]} 39... Bd3 {[%clk 0:00:21.9]} 40. Rc3 {[%clk 0:00:15.8]}
40... Be2 {[%clk 0:00:22.7]} 0-1

[Event "*** Titled Tuesday Blitz"]
[Site "Chess.com"]
[Date "2018.06.05"]
[Round "9"]
[White "nihalsarin"]
[Black "W_Amadeus"]
[Result "1-0"]
[WhiteElo "2749"]
[BlackElo "2531"]
[TimeControl "180+2"]
[EndTime "15:10:06 PDT"]
[Termination "nihalsarin won by resignation"]

1. c4 {[%clk 0:03:01.8]} 1... c6 {[%clk 0:03:00.1]} 2. Nf3 {[%clk 0:02:57]} 2...
d5 {[%clk 0:03:00.6]} 3. d4 {[%clk 0:02:58.7]} 3... Nf6 {[%clk 0:03:01.5]} 4.
Nc3 {[%clk 0:03:00.1]} 4... e6 {[%clk 0:03:02.7]} 5. Bg5 {[%clk 0:03:00.7]} 5...
h6 {[%clk 0:03:03.4]} 6. Bxf6 {[%clk 0:02:57.7]} 6... Qxf6 {[%clk 0:03:05.3]} 7.
Qb3 {[%clk 0:02:58.5]} 7... Nd7 {[%clk 0:03:03.3]} 8. e4 {[%clk 0:02:58]} 8...
dxe4 {[%clk 0:03:04.5]} 9. Nxe4 {[%clk 0:02:59.9]} 9... Qf4 {[%clk 0:03:05.6]}
10. Bd3 {[%clk 0:02:59.5]} 10... e5 {[%clk 0:03:04.5]} 11. O-O {[%clk
0:03:00.9]} 11... Be7 {[%clk 0:03:04.7]} 12. Rae1 {[%clk 0:03:02.1]} 12... exd4
{[%clk 0:02:49]} 13. Bb1 {[%clk 0:03:01.4]} 13... O-O {[%clk 0:02:39.8]} 14. Ng3
{[%clk 0:03:02.8]} 14... Nc5 {[%clk 0:02:19.2]} 15. Qd1 {[%clk 0:03:01.9]} 15...
Qc7 {[%clk 0:02:09.7]} 16. b4 {[%clk 0:02:32.1]} 16... Ne6 {[%clk 0:01:59.8]}
17. c5 {[%clk 0:02:33.1]} 17... Rd8 {[%clk 0:01:50.2]} 18. Ne5 {[%clk
0:02:27.7]} 18... Nf8 {[%clk 0:01:23.2]} 19. Nf5 {[%clk 0:02:21.4]} 19... Bxf5
{[%clk 0:01:04.1]} 20. Bxf5 {[%clk 0:02:23.2]} 20... Rd5 {[%clk 0:01:00.5]} 21.
f4 {[%clk 0:02:16.1]} 21... Bf6 {[%clk 0:00:47.4]} 22. Be4 {[%clk 0:02:03.4]}
22... Rxe5 {[%clk 0:00:40.8]} 23. fxe5 {[%clk 0:02:03.7]} 23... Bxe5 {[%clk
0:00:42.7]} 24. Qh5 {[%clk 0:02:00.1]} 24... f6 {[%clk 0:00:36.8]} 25. Bd3
{[%clk 0:01:55]} 25... a5 {[%clk 0:00:29.9]} 26. a3 {[%clk 0:01:54.1]} 26...
axb4 {[%clk 0:00:30.7]} 27. axb4 {[%clk 0:01:56]} 27... Kh8 {[%clk 0:00:27.4]}
28. Rf3 {[%clk 0:01:31.2]} 28... b6 {[%clk 0:00:25.7]} 29. cxb6 {[%clk
0:01:16.2]} 29... Qxb6 {[%clk 0:00:27.6]} 30. Ref1 {[%clk 0:01:17.6]} 30... Qxb4
{[%clk 0:00:24.2]} 31. g3 {[%clk 0:01:10]} 31... Qd6 {[%clk 0:00:21.3]} 32. Bc4
{[%clk 0:01:05.8]} 32... c5 {[%clk 0:00:19.5]} 33. Qf7 {[%clk 0:01:06.4]} 33...
Nh7 {[%clk 0:00:17.9]} 34. Ra3 {[%clk 0:01:01.9]} 34... Rf8 {[%clk 0:00:17.1]}
35. Qg6 {[%clk 0:01:02.4]} 35... Ng5 {[%clk 0:00:15.7]} 36. Ra7 {[%clk 0:01:01]}
36... f5 {[%clk 0:00:15.9]} 37. Rxf5 {[%clk 0:00:48.4]} 37... Qxg6 {[%clk
0:00:08.6]} 38. Rxf8+ {[%clk 0:00:48.2]} 38... Kh7 {[%clk 0:00:09.9]} 39. Bg8+
{[%clk 0:00:49.8]} 39... Kh8 {[%clk 0:00:11.2]} 40. Bf7+ {[%clk 0:00:48.2]}
40... Kh7 {[%clk 0:00:12.6]} 41. Bg8+ {[%clk 0:00:48]} 41... Kh8 {[%clk
0:00:13.4]} 42. Bf7+ {[%clk 0:00:49.5]} 42... Kh7 {[%clk 0:00:14.9]} 43. Rh8+
{[%clk 0:00:46.7]} 43... Kxh8 {[%clk 0:00:15]} 44. Bxg6 {[%clk 0:00:48.6]} 1-0

[Event "*** Titled Tuesday Blitz"]
[Site "Chess.com"]
[Date "2018.06.05"]
[Round "9"]
[White "EndgameGrinder"]
[Black "nochewycandy"]
[Result "0-1"]
[WhiteElo "2487"]
[BlackElo "2146"]
[TimeControl "180+2"]
[EndTime "15:10:06 PDT"]
[Termination "nochewycandy won by resignation"]

1. e4 {[%clk 0:03:01.9]} 1... g6 {[%clk 0:03:00.8]} 2. d4 {[%clk 0:03:02.3]}
2... Bg7 {[%clk 0:03:02.7]} 3. Nc3 {[%clk 0:03:03.1]} 3... d6 {[%clk 0:03:04.3]}
4. f4 {[%clk 0:03:03.5]} 4... a6 {[%clk 0:03:05.7]} 5. Nf3 {[%clk 0:03:04.8]}
5... b5 {[%clk 0:03:06.7]} 6. Bd3 {[%clk 0:03:06.1]} 6... Nd7 {[%clk 0:03:08.2]}
7. e5 {[%clk 0:03:03.5]} 7... Nh6 {[%clk 0:03:09]} 8. Qe2 {[%clk 0:03:00.3]}
8... O-O {[%clk 0:03:00.6]} 9. Ne4 {[%clk 0:02:29.6]} 9... Bb7 {[%clk
0:02:55.1]} 10. O-O {[%clk 0:02:27.6]} 10... c5 {[%clk 0:02:50.9]} 11. c3 {[%clk
0:02:28.2]} 11... cxd4 {[%clk 0:02:48.2]} 12. cxd4 {[%clk 0:02:27.4]} 12... Nb6
{[%clk 0:02:48.8]} 13. e6 {[%clk 0:01:41.7]} 13... f5 {[%clk 0:02:47.1]} 14.
Neg5 {[%clk 0:01:36.5]} 14... Ng4 {[%clk 0:02:45.8]} 15. Bd2 {[%clk 0:01:05.9]}
15... Nd5 {[%clk 0:02:41.9]} 16. h3 {[%clk 0:00:55.9]} 16... Ngf6 {[%clk
0:02:41.9]} 17. Kh2 {[%clk 0:00:44.9]} 17... Qb6 {[%clk 0:02:21.3]} 18. Rac1
{[%clk 0:00:43.9]} 18... Rac8 {[%clk 0:02:21.3]} 19. Rxc8 {[%clk 0:00:31.4]}
19... Rxc8 {[%clk 0:02:23.2]} 20. Rc1 {[%clk 0:00:32.3]} 20... Rxc1 {[%clk
0:02:20.4]} 21. Bxc1 {[%clk 0:00:34.2]} 21... Nh5 {[%clk 0:02:14.5]} 22. g3
{[%clk 0:00:23.7]} 22... Nhf6 {[%clk 0:02:08.5]} 23. Qc2 {[%clk 0:00:19.7]}
23... Nb4 {[%clk 0:01:56.7]} 24. Qb3 {[%clk 0:00:19]} 24... Nxd3 {[%clk
0:01:56.5]} 25. Qxd3 {[%clk 0:00:20.9]} 25... h6 {[%clk 0:01:54.5]} 26. Nf7
{[%clk 0:00:19.6]} 26... Bd5 {[%clk 0:01:50.2]} 27. Nd2 {[%clk 0:00:15.9]} 27...
Bxe6 {[%clk 0:01:47.6]} 28. Ne5 {[%clk 0:00:10.2]} 28... dxe5 {[%clk 0:01:48.5]}
29. dxe5 {[%clk 0:00:12.1]} 29... Nd5 {[%clk 0:01:49.2]} 30. Nb3 {[%clk
0:00:13.1]} 30... Qf2+ {[%clk 0:01:50.2]} 31. Kh1 {[%clk 0:00:14.1]} 31... Qe1+
{[%clk 0:01:50.6]} 32. Kg2 {[%clk 0:00:13.1]} 32... Qe4+ {[%clk 0:01:46.1]} 33.
Qxe4 {[%clk 0:00:13.8]} 33... fxe4 {[%clk 0:01:48]} 34. Kf2 {[%clk 0:00:15.2]}
34... Nb4 {[%clk 0:01:40.1]} 35. Ke3 {[%clk 0:00:13.2]} 35... Nxa2 {[%clk
0:01:39.3]} 36. Nc5 {[%clk 0:00:13.5]} 36... Bxh3 {[%clk 0:01:37.3]} 37. Bd2
{[%clk 0:00:14.7]} 37... Bf5 {[%clk 0:01:36.6]} 38. Nxa6 {[%clk 0:00:15.5]}
38... e6 {[%clk 0:01:33.5]} 39. Nc7 {[%clk 0:00:15.4]} 39... b4 {[%clk
0:01:33.8]} 40. Nb5 {[%clk 0:00:16]} 40... Bf8 {[%clk 0:01:34.4]} 41. Kd4 {[%clk
0:00:15]} 41... Kf7 {[%clk 0:01:30.8]} 42. Be3 {[%clk 0:00:14.7]} 42... Bh3
{[%clk 0:00:57.9]} 43. Kc4 {[%clk 0:00:14.8]} 43... Bf1+ {[%clk 0:00:58.6]} 44.
Kb3 {[%clk 0:00:12.2]} 44... Bxb5 {[%clk 0:00:59.3]} 45. Kxa2 {[%clk 0:00:14.1]}
45... Bc4+ {[%clk 0:01:00.6]} 46. Kb1 {[%clk 0:00:11.3]} 46... b3 {[%clk
0:01:00.4]} 47. Kc1 {[%clk 0:00:12.6]} 47... Bd3 {[%clk 0:01:00.7]} 48. Kd2
{[%clk 0:00:13.9]} 48... Bc2 {[%clk 0:01:02.1]} 49. Kc3 {[%clk 0:00:15.1]} 49...
Ke8 {[%clk 0:00:59.3]} 50. Kd4 {[%clk 0:00:15.8]} 50... Kd7 {[%clk 0:00:59.9]}
51. Kc4 {[%clk 0:00:17.4]} 51... Kc6 {[%clk 0:01:00.9]} 52. Kd4 {[%clk
0:00:19.3]} 52... Bc5+ {[%clk 0:01:01.8]} 53. Kc3 {[%clk 0:00:20.8]} 53... Bxe3
{[%clk 0:01:03.4]} 0-1